[Event "20. Dolomitenbank Open-A 2019"]
[Site "Lienz"]
[Date "2019.02.09"]
[Round "1.1"]
[White "Mohite, Ranveer"]
[Black "Solodovnichenko, Yuri"]
[Result "0-1"]
[ECO "B45"]
[WhiteElo "2238"]
[BlackElo "2574"]
[Annotator "ChessBase"]
[PlyCount "112"]
[EventDate "2019.02.09"]
[EventType "swiss"]
[EventCountry "AUT"]
[SourceTitle "playchess.com"]
[Source "ChessBase"]
[SourceQuality "1"]
[TimeControl "40/5400+30:1800+30"]

1. e4 {[%emt 0:00:00]} c5 {[%emt 0:00:00]} 2. Nf3 {[%emt 0:00:16]} e6 {[%emt 0:00:02]} 3. d4 {[%emt 0:00:16]} cxd4 {[%emt 0:00:05]} 4. Nxd4 {[%emt 0:00:13]} Nc6 {[%emt 0:00:05]} 5. Nc3 {[%emt 0:00:45]} d6 {[%emt 0:00:07]} 6. Be3 {[%emt 0:03:36]} Nf6 {[%emt 0:01:31]} 7. Qd2 {[%emt 0:02:37]} Be7 {[%emt 0:00:25]} 8. f3 {[%emt 0:01:11]} O-O {[%emt 0:00:08]} 9. O-O-O {[%emt 0:00:36]} a6 {[%emt 0:00:31]} 10. Kb1 {[%emt 0:01:16]} Nxd4 {[%emt 0:07:08]} 11. Bxd4 {[%emt 0:00:48]} Nd7 {[%emt 0:02:08]} 12. Qf2 {[%emt 0:08:54]} b5 {[%emt 0:02:41]} 13. f4 {[%emt 0:03:27]} b4 {[%emt 0:08:21]} 14. Na4 {[%emt 0:03:34]} Bb7 {[%emt 0:04:11]} 15. Bd3 {[%emt 0:16:31]} e5 {[%emt 0:16:26]} 16. fxe5 {[%emt 0:03:41]} dxe5 {[%emt 0:00:09]} 17. Be3 {[%emt 0:01:18]} Qc8 {[%emt 0:02:36]} 18. Rhe1 {[%emt 0:17:51]} Qc6 {[%emt 0:03:10]} 19. Nb6 {[%emt 0:01:08]} Nxb6 {[%emt 0:00:06]} 20. Bxb6 {[%emt 0:00:04]} a5 {[%emt 0:00:44]} 21. b3 {[%emt 0:04:50]} Ba6 {[%emt 0:02:31]} 22. Be3 {[%emt 0:03:41]} a4 {[%emt 0:01:18]} 23. Bxa6 {[%emt 0:05:46]} Rxa6 {[%emt 0:00:33]} 24. Rd5 {[%emt 0:00:11]} Rfa8 {[%emt 0:01:15]} 25. Re2 {[%emt 0:01:27]} f5 {[%emt 0:07:17]} 26. Qf3 {[%emt 0:05:31]} f4 {[%emt 0:09:56]} 27. Bc1 {[%emt 0:01:43]} Bc5 {[%emt 0:05:26]} 28. Rxe5 {[%emt 0:07:03]} Bd4 {[%emt 0:05:11]} 29. Rd5 {[%emt 0:00:07]} Bc3 {[%emt 0:01:08]} 30. Qd3 {[%emt 0:01:02]} axb3 {[%emt 0:03:54]} 31. cxb3 {[%emt 0:01:07]} Qc7 {[%emt 0:03:40]} 32. e5 {[%emt 0:01:30]} Re6 {[%emt 0:00:51]} 33. Rd7 {[%emt 0:00:24]} Qc5 {[%emt 0:01:37]} 34. Qf5 {[%emt 0:02:17]} Re7 {[%emt 0:00:50]} 35. Rxe7 {[%emt 0:00:30]} Qxe7 {[%emt 0:00:02]} 36. Qxf4 {[%emt 0:00:14]} Kh8 {[%emt 0:01:11]} 37. Qc4 {[%emt 0:01:20]} Qe8 {[%emt 0:00:28]} 38. e6 {[%emt 0:00:58]} h6 {[%emt 0:02:20]} 39. e7 {[%emt 0:00:47]} Ra7 {[%emt 0:00:32]} 40. Bb2 {[%emt 0:00:47]} Bxb2 {[%emt 0:01:10]} 41. Qc5 {[%emt 0:03:51]} Bd4 {[%emt 0:04:36]} 42. Qxd4 {[%emt 0:00:52]} Rxe7 {[%emt 0:00:07]} 43. Rd2 {[%emt 0:03:11]} Qg6+ {[%emt 0:04:06]} 44. Qd3 {[%emt 0:02:39]} Re1+ {[%emt 0:00:31]} 45. Kc2 {[%emt 0:00:07]} Qc6+ {[%emt 0:00:28]} 46. Qc4 {[%emt 0:00:02]} Qg6+ {[%emt 0:00:21]} 47. Qd3 {[%emt 0:00:02]} Qc6+ {[%emt 0:00:09]} 48. Qc4 {[%emt 0:00:07]} Qa8 {[%emt 0:03:34]} 49. Qxb4 {[%emt 0:01:33]} Qxa2+ {[%emt 0:00:10]} 50. Kd3 {[%emt 0:01:13]} Qb1+ {[%emt 0:04:11]} 51. Rc2 {[%emt 0:03:02]} Rd1+ {[%emt 0:00:50]} 52. Kc3 {[%emt 0:00:06]} Qa1+ {[%emt 0:00:06]} 53. Rb2 {[%emt 0:00:05]} Rc1+ {[%emt 0:00:34]} 54. Kd3 {[%emt 0:00:06]} Qxb2 {[%emt 0:00:19]} 55. Qf8+ {[%emt 0:00:06]} Kh7 {[%emt 0:00:02]} 56. Qf5+ {[%emt 0:00:07]} g6 {[%emt 0:00:10] Kd4} 0-1

[Event "20. Dolomitenbank Open-A 2019"]
[Site "Lienz"]
[Date "2019.02.09"]
[Round "1.2"]
[White "Istratescu, Andrei"]
[Black "Mohota, Nisha"]
[Result "1-0"]
[ECO "C68"]
[WhiteElo "2555"]
[BlackElo "2233"]
[Annotator "ChessBase"]
[PlyCount "119"]
[EventDate "2019.02.09"]
[EventType "swiss"]
[EventCountry "AUT"]
[SourceTitle "playchess.com"]
[Source "ChessBase"]
[SourceQuality "1"]
[TimeControl "40/5400+30:1800+30"]

1. e4 {[%emt 0:00:00]} e5 {[%emt 0:00:00]} 2. Nf3 {[%emt 0:00:00]} Nc6 {[%emt 0:00:00]} 3. Bb5 {[%emt 0:00:07]} a6 {[%emt 0:00:05]} 4. Bxc6 {[%emt 0:00:19]} dxc6 {[%emt 0:00:11]} 5. O-O {[%emt 0:00:04]} Bg4 {[%emt 0:00:49]} 6. h3 {[%emt 0:00:20]} Bxf3 {[%emt 0:00:32]} 7. Qxf3 {[%emt 0:00:15]} Qd7 {[%emt 0:00:02]} 8. d3 {[%emt 0:01:19]} f6 {[%emt 0:00:34]} 9. Nd2 {[%emt 0:04:45]} h5 {[%emt 0:02:31]} 10. Nc4 {[%emt 0:03:04]} O-O-O {[%emt 0:00:38]} 11. a4 {[%emt 0:08:52]} Kb8 {[%emt 0:00:19]} 12. Bd2 {[%emt 0:05:38]} g5 {[%emt 0:02:19]} 13. b4 {[%emt 0:02:41]} g4 {[%emt 0:02:28]} 14. Qg3 {[%emt 0:00:12]} gxh3 {[%emt 0:11:25]} 15. Qxh3 {[%emt 0:02:44]} Qe8 {[%emt 0:08:22]} 16. Rfb1 {[%emt 0:03:53]} Bh6 {[%emt 0:06:15]} 17. Be3 {[%emt 0:04:25]} Qd7 {[%emt 0:17:37]} 18. Qxd7 {[%emt 0:07:35]} Rxd7 {[%emt 0:00:02]} 19. b5 {[%emt 0:00:05]} cxb5 {[%emt 0:04:26]} 20. axb5 {[%emt 0:00:12]} Bxe3 {[%emt 0:04:12]} 21. Nxe3 {[%emt 0:01:35]} axb5 {[%emt 0:07:02]} 22. Rxb5 {[%emt 0:00:58]} c6 {[%emt 0:00:03]} 23. Rba5 {[%emt 0:00:44]} Kc7 {[%emt 0:01:00]} 24. Ra8 {[%emt 0:00:29]} Rdh7 {[%emt 0:03:29]} 25. Rf8 {[%emt 0:00:47]} Nh6 {[%emt 0:01:33]} 26. Rxf6 {[%emt 0:00:50]} Ng4 {[%emt 0:00:40]} 27. Rf3 {[%emt 0:04:18]} Nxe3 {[%emt 0:00:31]} 28. Rxe3 {[%emt 0:00:02]} Rg7 {[%emt 0:03:09]} 29. Rh3 {[%emt 0:01:56]} c5 {[%emt 0:01:43]} 30. Kf1 {[%emt 0:02:01]} Kc6 {[%emt 0:00:49]} 31. g3 {[%emt 0:00:26]} b6 {[%emt 0:11:28]} 32. Ke2 {[%emt 0:00:37]} Kb7 {[%emt 0:04:10]} 33. Rah1 {[%emt 0:01:51]} Rg5 {[%emt 0:00:50]} 34. Rh4 {[%emt 0:00:07]} Rh6 {[%emt 0:03:55]} 35. g4 {[%emt 0:01:07]} Re6 {[%emt 0:00:08]} 36. gxh5 {[%emt 0:00:30]} Rh6 {[%emt 0:00:02]} 37. R1h3 {[%emt 0:01:15]} Kc6 {[%emt 0:03:48]} 38. Rf3 {[%emt 0:01:11]} Kd6 {[%emt 0:00:55]} 39. Rf5 {[%emt 0:00:16]} Rg1 {[%emt 0:00:43]} 40. Rh3 {[%emt 0:00:27]} b5 {[%emt 0:00:32]} 41. Rg3 {[%emt 0:30:48]} Rc1 {[%emt 0:03:38]} 42. Kd2 {[%emt 0:00:00]} Rh1 {[%emt 0:00:46]} 43. Rg6+ {[%emt 0:00:00]} Rxg6 {[%emt 0:00:04]} 44. hxg6 {[%emt 0:00:00]} Rg1 {[%emt 0:00:17]} 45. Rf6+ {[%emt 0:00:00]} Kd7 {[%emt 0:00:52]} 46. Rb6 {[%emt 0:00:00]} b4 {[%emt 0:01:55]} 47. g7 {[%emt 0:00:00]} Kc7 {[%emt 0:00:19]} 48. Re6 {[%emt 0:00:00]} Rxg7 {[%emt 0:00:19]} 49. Rxe5 {[%emt 0:00:00]} Kc6 {[%emt 0:00:18]} 50. Rf5 {[%emt 0:00:00]} Rg2 {[%emt 0:02:37]} 51. Kc1 {[%emt 0:00:00]} Rg1+ {[%emt 0:02:28]} 52. Kb2 {[%emt 0:00:00]} Rd1 {[%emt 0:00:35]} 53. Kb3 {[%emt 0:00:00]} Kb5 {[%emt 0:00:28]} 54. f4 {[%emt 0:00:00]} Rb1+ {[%emt 0:02:22]} 55. Ka2 {[%emt 0:00:00]} Rd1 {[%emt 0:00:12]} 56. Rd5 {[%emt 0:00:00]} Kc6 {[%emt 0:02:52]} 57. Kb3 {[%emt 0:00:00]} Rd2 {[%emt 0:00:07]} 58. f5 {[%emt 0:00:00]} Rf2 {[%emt 0:00:29]} 59. f6 {[%emt 0:00:00]} Kb6 {[%emt 0:05:08]} 60. Rf5 {[%emt 0:00:00]} 1-0

[Event "20. Dolomitenbank Open-A 2019"]
[Site "Lienz"]
[Date "2019.02.09"]
[Round "1.3"]
[White "Lumachi, Gabriele"]
[Black "Kunin, Vitaly"]
[Result "0-1"]
[ECO "A05"]
[WhiteElo "2231"]
[BlackElo "2531"]
[Annotator "ChessBase"]
[PlyCount "92"]
[EventDate "2019.02.09"]
[EventType "swiss"]
[EventCountry "AUT"]
[SourceTitle "playchess.com"]
[Source "ChessBase"]
[SourceQuality "1"]
[TimeControl "40/5400+30:1800+30"]

1. Nf3 {[%emt 0:00:00]} Nf6 {[%emt 0:00:34]} 2. g3 {[%emt 0:00:16]} b5 {[%emt 0:01:16]} 3. Bg2 {[%emt 0:00:45]} Bb7 {[%emt 0:00:08]} 4. O-O {[%emt 0:02:48]} e6 {[%emt 0:00:09]} 5. d4 {[%emt 0:11:19]} c5 {[%emt 0:02:59]} 6. b3 {[%emt 0:02:50]} cxd4 {[%emt 0:00:54]} 7. Bb2 {[%emt 0:01:35]} Be7 {[%emt 0:01:06]} 8. Nxd4 {[%emt 0:03:10]} Bxg2 {[%emt 0:01:29]} 9. Kxg2 {[%emt 0:00:17]} a6 {[%emt 0:03:32]} 10. c4 {[%emt 0:25:23]} bxc4 {[%emt 0:01:24]} 11. bxc4 {[%emt 0:04:02]} Qc7 {[%emt 0:02:53]} 12. Qc2 {[%emt 0:02:24]} O-O {[%emt 0:01:05]} 13. Nd2 {[%emt 0:01:53]} d6 {[%emt 0:02:10]} 14. Rac1 {[%emt 0:03:23]} Nbd7 {[%emt 0:00:25]} 15. Rfd1 {[%emt 0:02:44]} Rab8 {[%emt 0:01:54]} 16. Ba1 {[%emt 0:00:20]} Rfc8 {[%emt 0:00:38]} 17. N4f3 {[%emt 0:05:26]} h6 {[%emt 0:04:22]} 18. Ne4 {[%emt 0:05:44]} Nxe4 {[%emt 0:07:52]} 19. Qxe4 {[%emt 0:00:08]} Rb4 {[%emt 0:00:33]} 20. Qd4 {[%emt 0:06:59]} Nf6 {[%emt 0:05:09]} 21. Nd2 {[%emt 0:04:27]} Ra4 {[%emt 0:06:27]} 22. Qb2 {[%emt 0:01:29]} Rb8 {[%emt 0:03:20]} 23. Qc2 {[%emt 0:00:44]} Qc6+ {[%emt 0:00:59]} 24. Kg1 {[%emt 0:00:45]} Rc8 {[%emt 0:05:22]} 25. Qb2 {[%emt 0:03:28]} Ne8 {[%emt 0:05:33]} 26. Qb3 {[%emt 0:01:27]} Bg5 {[%emt 0:05:12]} 27. e3 {[%emt 0:01:58]} Bf6 {[%emt 0:01:25]} 28. Bc3 {[%emt 0:01:03]} Bxc3 {[%emt 0:00:37]} 29. Rxc3 {[%emt 0:00:30]} Ra5 {[%emt 0:00:45]} 30. Rd3 {[%emt 0:01:46]} Rc5 {[%emt 0:03:06]} 31. Rb1 {[%emt 0:01:18]} Ra5 {[%emt 0:15:18]} 32. a3 {[%emt 0:00:45]} Nf6 {[%emt 0:04:36]} 33. Qb4 {[%emt 0:03:09]} Rc5 {[%emt 0:00:51]} 34. Qb6 {[%emt 0:02:05]} Nd7 {[%emt 0:01:42]} 35. Qxc6 {[%emt 0:00:14]} R5xc6 {[%emt 0:00:15]} 36. Ne4 {[%emt 0:00:48]} Ne5 {[%emt 0:00:31]} 37. Rxd6 {[%emt 0:00:24]} Rxc4 {[%emt 0:00:16]} 38. Nd2 {[%emt 0:00:41]} Rc2 {[%emt 0:00:43]} 39. Kg2 {[%emt 0:00:26]} Ra2 {[%emt 0:00:08]} 40. Ne4 {[%emt 0:00:35]} Rcc2 {[%emt 0:06:44]} 41. Rb8+ {[%emt 0:18:03]} Kh7 {[%emt 0:00:15]} 42. Rxa6 {[%emt 0:06:17]} Ng4 {[%emt 0:01:24]} 43. Rf8 {[%emt 0:06:17]} Nxf2 {[%emt 0:02:37]} 44. Nxf2 {[%emt 0:00:24]} Rxf2+ {[%emt 0:00:08]} 45. Kg1 {[%emt 0:00:03]} Rg2+ {[%emt 0:00:16]} 46. Kh1 {[%emt 0:00:58]} Rge2 {[%emt 0:00:32]} 0-1

[Event "20. Dolomitenbank Open-A 2019"]
[Site "Lienz"]
[Date "2019.02.09"]
[Round "1.6"]
[White "Sanal, Vahap"]
[Black "Schnabel, Ralf"]
[Result "1-0"]
[ECO "B03"]
[WhiteElo "2497"]
[BlackElo "2175"]
[Annotator "ChessBase"]
[PlyCount "73"]
[EventDate "2019.02.09"]
[EventType "swiss"]
[EventCountry "AUT"]
[SourceTitle "playchess.com"]
[Source "ChessBase"]
[SourceQuality "1"]
[TimeControl "40/5400+30:1800+30"]

1. e4 {[%emt 0:00:00]} Nf6 {[%emt 0:00:00]} 2. e5 {[%emt 0:00:00]} Nd5 {[%emt 0:00:00]} 3. c4 {[%emt 0:00:13]} Nb6 {[%emt 0:00:00]} 4. d4 {[%emt 0:00:10]} d6 {[%emt 0:00:00]} 5. exd6 {[%emt 0:00:06]} cxd6 {[%emt 0:00:00]} 6. Nc3 {[%emt 0:00:11]} g6 {[%emt 0:00:09]} 7. Be3 {[%emt 0:00:13]} Bg7 {[%emt 0:00:05]} 8. Rc1 {[%emt 0:00:09]} O-O {[%emt 0:00:06]} 9. b3 {[%emt 0:00:09]} e5 {[%emt 0:00:06]} 10. dxe5 {[%emt 0:04:52]} dxe5 {[%emt 0:00:18]} 11. Qxd8 {[%emt 0:01:01]} Rxd8 {[%emt 0:00:05]} 12. Nb5 {[%emt 0:01:33]} Rd7 {[%emt 0:06:51]} 13. a4 {[%emt 0:13:46]} Bf8 {[%emt 0:11:03]} 14. Be2 {[%emt 0:07:27]} Bb4+ {[%emt 0:02:06]} 15. Kf1 {[%emt 0:00:09]} Ba5 {[%emt 0:11:38]} 16. f4 {[%emt 0:10:43]} e4 {[%emt 0:15:45]} 17. Nh3 {[%emt 0:07:06]} Nc6 {[%emt 0:07:08]} 18. Ng5 {[%emt 0:05:17]} f5 {[%emt 0:14:24]} 19. Kf2 {[%emt 0:05:19]} a6 {[%emt 0:03:55]} 20. Nc3 {[%emt 0:02:29]} h6 {[%emt 0:04:29]} 21. Ne6 {[%emt 0:02:14]} Re7 {[%emt 0:00:45]} 22. Nd4 {[%emt 0:02:00]} Nb4 {[%emt 0:06:18]} 23. Rhd1 {[%emt 0:03:24]} Nd7 {[%emt 0:04:06]} 24. Nd5 {[%emt 0:00:59]} Nxd5 {[%emt 0:01:23]} 25. cxd5 {[%emt 0:00:07]} Nf6 {[%emt 0:02:40]} 26. h3 {[%emt 0:02:02]} Bd7 {[%emt 0:02:36]} 27. Ne6 {[%emt 0:03:19]} Rc8 {[%emt 0:01:12]} 28. Rxc8+ {[%emt 0:02:15]} Bxc8 {[%emt 0:00:02]} 29. Bc5 {[%emt 0:04:35]} Re8 {[%emt 0:02:01]} 30. Bc4 {[%emt 0:00:38]} Nd7 {[%emt 0:02:34]} 31. d6 {[%emt 0:00:31]} Kh7 {[%emt 0:00:21]} 32. Bd4 {[%emt 0:03:06]} Nb6 {[%emt 0:01:51]} 33. Nc7 {[%emt 0:02:03]} Rd8 {[%emt 0:00:44]} 34. Bf6 {[%emt 0:02:34]} Rxd6 {[%emt 0:01:12]} 35. Rxd6 {[%emt 0:00:22]} Nxc4 {[%emt 0:00:01]} 36. Rd8 {[%emt 0:00:15]} Bxc7 {[%emt 0:00:20]} 37. Rh8# {[%emt 0:00:07]} 1-0

[Event "20. Dolomitenbank Open-A 2019"]
[Site "Lienz"]
[Date "2019.02.09"]
[Round "1.8"]
[White "Goh, Wei Ming Kevin"]
[Black "Ng, Jen Sheng"]
[Result "0-1"]
[ECO "A45"]
[WhiteElo "2477"]
[BlackElo "2153"]
[Annotator "ChessBase"]
[PlyCount "58"]
[EventDate "2019.02.09"]
[EventType "swiss"]
[EventCountry "AUT"]
[SourceTitle "playchess.com"]
[Source "ChessBase"]
[SourceQuality "1"]
[TimeControl "40/5400+30:1800+30"]

1. d4 {[%emt 0:00:13]} Nf6 {[%emt 0:00:00]} 2. Bg5 {[%emt 0:01:00]} Ne4 {[%emt 0:00:00]} 3. Bf4 {[%emt 0:00:05]} d5 {[%emt 0:00:00]} 4. e3 {[%emt 0:00:13]} c5 {[%emt 0:00:00]} 5. Bd3 {[%emt 0:00:17]} cxd4 {[%emt 0:03:10]} 6. Bxe4 {[%emt 0:07:59]} dxe4 {[%emt 0:00:12]} 7. exd4 {[%emt 0:00:04]} e6 {[%emt 0:10:02]} 8. Ne2 {[%emt 0:02:42]} Nc6 {[%emt 0:02:41]} 9. O-O {[%emt 0:02:14]} Be7 {[%emt 0:01:35]} 10. Nbc3 {[%emt 0:00:34]} f5 {[%emt 0:03:28]} 11. f3 {[%emt 0:03:07]} exf3 {[%emt 0:06:01]} 12. Rxf3 {[%emt 0:00:09]} O-O {[%emt 0:00:58]} 13. Qd3 {[%emt 0:21:51]} Bf6 {[%emt 0:09:31]} 14. Rd1 {[%emt 0:00:46]} b6 {[%emt 0:02:20]} 15. a3 {[%emt 0:15:24]} Bb7 {[%emt 0:15:05]} 16. Re3 {[%emt 0:02:00]} g5 {[%emt 0:03:56]} 17. Rg3 {[%emt 0:05:34]} Kh8 {[%emt 0:03:42]} 18. Bc1 {[%emt 0:00:49]} f4 {[%emt 0:08:57]} 19. Rh3 {[%emt 0:00:10]} Qe7 {[%emt 0:02:36]} 20. Ne4 {[%emt 0:12:09]} Rad8 {[%emt 0:05:21]} 21. c3 {[%emt 0:00:07]} Qg7 {[%emt 0:04:43]} 22. Qc2 {[%emt 0:04:09]} Ne7 23. Nf2 {[%emt 0:01:19]} Nf5 {[%emt 0:07:38]} 24. Ng4 {[%emt 0:04:20]} Nh4 {[%emt 0:01:04]} 25. Kf2 {[%emt 0:09:02]} Bxg2 {[%emt 0:07:27]} 26. Rxh4 {[%emt 0:00:46]} gxh4 {[%emt 0:00:00]} 27. Nxf6 {[%emt 0:00:18]} Rxf6 {[%emt 0:00:01]} 28. Rg1 {[%emt 0:00:46]} h3 {[%emt 0:00:08]} 29. Bxf4 {[%emt 0:00:28]} Qg4 {[%emt 0:00:41]} 0-1

[Event "20. Dolomitenbank Open-A 2019"]
[Site "Lienz"]
[Date "2019.02.10"]
[Round "3.5"]
[White "Hacker, Jonas"]
[Black "Solodovnichenko, Yuri"]
[Result "0-1"]
[ECO "B96"]
[WhiteElo "2369"]
[BlackElo "2574"]
[Annotator "RC"]
[PlyCount "108"]
[EventDate "2019.02.09"]
[EventType "swiss"]
[EventCountry "AUT"]
[SourceTitle "playchess.com"]
[Source "ChessBase"]
[SourceQuality "1"]
[TimeControl "40/5400+30:1800+30"]

1. e4 {[%emt 0:00:00]} c5 {[%emt 0:00:00]} 2. Nf3 {[%emt 0:00:00]} d6 {[%emt 0:00:00]} 3. d4 {[%emt 0:00:00]} Nf6 {[%emt 0:00:03]} 4. Nc3 {[%emt 0:00:11]} cxd4 {[%emt 0:00:04]} 5. Nxd4 {[%emt 0:00:09]} a6 {[%emt 0:00:06]} 6. Bg5 {[%emt 0:00:19]} e6 {[%emt 0:00:06]} 7. f4 {[%emt 0:00:17]} h6 {[%emt 0:00:07]} 8. Bh4 {[%emt 0:00:23]} Qb6 {[%emt 0:00:07]} 9. a3 {[%emt 0:01:47]} Be7 {[%emt 0:00:15]} 10. Bf2 {[%emt 0:03:03]} Qc7 {[%emt 0:02:51]} 11. g4 {[%emt 0:06:31]} g5 {[%emt 0:03:50]} 12. f5 {[%emt 0:04:37]} Nc6 {[%emt 0:05:44]} 13. Nxc6 {[%emt 0:11:21]} Qxc6 {[%emt 0:01:49]} 14. Bg2 {[%emt 0:01:37]} h5 {[%emt 0:03:27]} 15. fxe6 {[%emt 0:09:23]} Bxe6 {[%emt 0:02:36]} 16. gxh5 {[%emt 0:04:05]} Nxh5 {[%emt 0:08:32]} 17. Nd5 {[%emt 0:14:26]} Bxd5 {[%emt 0:05:52]} 18. exd5 {[%emt 0:00:49]} Qc4 {[%emt 0:00:23]} 19. Qd4 {[%emt 0:02:24]} Qxd4 {[%emt 0:00:05]} 20. Bxd4 {[%emt 0:00:03]} Bf6 {[%emt 0:00:10]} 21. Bxf6 {[%emt 0:02:43]} Nxf6 {[%emt 0:00:06]} 22. O-O {[%emt 0:00:05]} Ng4 {[%emt 0:00:32]} 23. Rf5 {[%emt 0:01:36]} Rg8 {[%emt 0:03:25]} 24. Re1+ {[%emt 0:04:22]} Ne5 {[%emt 0:00:27]} 25. Re4 {[%emt 0:00:44]} Rc8 {[%emt 0:03:43]} 26. c3 {[%emt 0:01:51]} Ke7 {[%emt 0:01:08]} 27. Bf1 {[%emt 0:04:51]} b5 {[%emt 0:09:26]} 28. Be2 {[%emt 0:02:41]} Rc5 {[%emt 0:00:43]} 29. Rd4 {[%emt 0:00:12]} f6 {[%emt 0:01:39]} 30. Rf1 {[%emt 0:04:44]} Rh8 {[%emt 0:03:08]} 31. Ra1 {[%emt 0:03:03]} f5 {[%emt 0:01:04]} 32. a4 {[%emt 0:00:47]} bxa4 {[%emt 0:00:42]} 33. Raxa4 {[%emt 0:00:52]} a5 {[%emt 0:00:53]} 34. Rd2 {[%emt 0:02:57]} g4 {[%emt 0:00:53]} 35. Bd1 {[%emt 0:01:54]} Kf6 {[%emt 0:01:07]} 36. Rad4 {[%emt 0:06:01]} Kg5 {[%emt 0:00:47]} 37. Rf2 {[%emt 0:00:16]} Rc4 {[%emt 0:02:55]} 38. Rff4 {[%emt 0:01:49]} Rxd4 {[%emt 0:03:01]} 39. Rxd4 {[%emt 0:00:02]} f4 {[%emt 0:01:01]} 40. Ra4 {[%emt 0:01:27]} f3 {[%emt 0:02:54]} 41. Rd4 {[%emt 0:34:59]} Rh7 {[%emt 0:37:32]} 42. b3 {[%emt 0:00:00]} Rh8 {[%emt 0:00:00]} 43. c4 {[%emt 0:00:00]} Rh7 {[%emt 0:00:00]} 44. Re4 {[%emt 0:00:00]} a4 {[%emt 0:00:00]} 45. bxa4 {[%emt 0:00:00]} Rb7 {[%emt 0:00:00]} 46. Rd4 {[%emt 0:00:00]} Rb2 {[%emt 0:00:00]} 47. Kh1 {[%emt 0:00:00]} Kh4 {[%emt 0:00:00]} 48. c5 {[%emt 0:00:00]} dxc5 {[%emt 0:00:00]} 49. Re4 {[%emt 0:00:00]} Rb1 {[%emt 0:00:00]} 50. Re1 {[%emt 0:00:00]} Nd3 {[%emt 0:00:00]} 51. Rf1 {[%emt 0:00:00]} Nf2+ {[%emt 0:00:00]} 52. Kg1 {[%emt 0:00:00]} Nxd1 {[%emt 0:00:00]} 53. d6 {[%emt 0:00:00]} f2+ {[%emt 0:00:00]} 54. Kh1 {[%emt 0:00:00]} Kh3 0-1

[Event "20. Dolomitenbank Open-A 2019"]
[Site "Lienz"]
[Date "2019.02.10"]
[Round "3.6"]
[White "Istratescu, Andrei"]
[Black "Singer, Christoph"]
[Result "1/2-1/2"]
[ECO "D37"]
[WhiteElo "2555"]
[BlackElo "2338"]
[Annotator "RC"]
[PlyCount "39"]
[EventDate "2019.02.09"]
[EventType "swiss"]
[EventCountry "AUT"]
[SourceTitle "playchess.com"]
[Source "ChessBase"]
[SourceQuality "1"]
[TimeControl "40/5400+30:1800+30"]

1. d4 {[%emt 0:00:00]} d5 {[%emt 0:00:00]} 2. c4 {[%emt 0:00:00]} e6 {[%emt 0:00:00]} 3. Nc3 {[%emt 0:00:00]} Be7 {[%emt 0:00:00]} 4. Nf3 {[%emt 0:00:00]} Nf6 {[%emt 0:00:00]} 5. Bf4 {[%emt 0:00:00]} O-O {[%emt 0:00:02]} 6. e3 {[%emt 0:00:00]} b6 {[%emt 0:00:10]} 7. cxd5 {[%emt 0:01:25]} Nxd5 {[%emt 0:00:10]} 8. Nxd5 {[%emt 0:00:04]} Qxd5 {[%emt 0:00:29]} 9. Bd3 {[%emt 0:00:46]} Qa5+ {[%emt 0:03:13]} 10. Nd2 {[%emt 0:06:56]} Ba6 {[%emt 0:02:54]} 11. Be4 {[%emt 0:04:48]} Nd7 {[%emt 0:01:22]} 12. a3 {[%emt 0:08:48]} Rac8 {[%emt 0:17:07]} 13. Bc6 {[%emt 0:08:50]} Bb5 {[%emt 0:21:07]} 14. b4 {[%emt 0:27:32]} Qa6 {[%emt 0:00:42]} 15. Bxb5 {[%emt 0:03:27]} Qxb5 {[%emt 0:00:13]} 16. Qe2 {[%emt 0:00:02]} a6 {[%emt 0:07:28]} 17. Qxb5 {[%emt 0:05:52]} axb5 {[%emt 0:00:08]} 18. Ke2 {[%emt 0:00:13]} c5 {[%emt 0:01:18]} 19. bxc5 {[%emt 0:02:16]} bxc5 {[%emt 0:00:03]} 20. dxc5 1/2-1/2

[Event "20. Dolomitenbank Open-A 2019"]
[Site "Lienz"]
[Date "2019.02.14"]
[Round "7.3"]
[White "Zhang, Ziji"]
[Black "Prusikin, Michael"]
[Result "1/2-1/2"]
[ECO "E35"]
[WhiteElo "2406"]
[BlackElo "2517"]
[Annotator "RC"]
[PlyCount "30"]
[EventDate "2019.02.09"]
[EventType "swiss"]
[EventCountry "AUT"]
[SourceTitle "playchess.com"]
[Source "ChessBase"]
[SourceQuality "1"]
[TimeControl "40/5400+30:1800+30"]

1. d4 {[%emt 0:00:00]} Nf6 {[%emt 0:00:00]} 2. c4 {[%emt 0:00:00]} e6 {[%emt 0:00:00]} 3. Nc3 {[%emt 0:00:00]} Bb4 {[%emt 0:00:00]} 4. Qc2 {[%emt 0:00:42]} d5 {[%emt 0:00:02]} 5. cxd5 {[%emt 0:00:15]} exd5 {[%emt 0:00:13]} 6. Bg5 {[%emt 0:00:13]} h6 {[%emt 0:00:31]} 7. Bh4 {[%emt 0:00:11]} c5 {[%emt 0:00:51]} 8. dxc5 {[%emt 0:00:10]} O-O {[%emt 0:00:16]} 9. e3 {[%emt 0:00:29]} Be6 {[%emt 0:01:09]} 10. Bd3 {[%emt 0:05:05]} d4 {[%emt 0:03:23]} 11. exd4 {[%emt 0:13:11]} Nc6 {[%emt 0:00:15]} 12. Nge2 {[%emt 0:00:16]} Nxd4 {[%emt 0:00:53]} 13. Nxd4 {[%emt 0:00:07]} Qxd4 {[%emt 0:00:09]} 14. Bxf6 {[%emt 0:00:17]} Qxf6 {[%emt 0:00:40]} 15. O-O {[%emt 0:00:16]} Bxc3 {[%emt 0:00:41]} 1/2-1/2